[Event "Titled Tuesday Blitz May 23 Early 2023"]
[White "Floresvillar Gonzalez, Luis Migu"]
[Black "Blokhin, Sofia"]
[WhiteFideId "5100542"]
[BlackFideId "4508190"]
[WhiteElo "2040"]
[BlackElo "1994"]
[Result "1-0"]
[Round "07"]
[TimeControl "180+2"]
[Date "2023.05.23"]
[WhiteClock "0:00:32"]
[BlackClock "0:00:11"]

1. e4 {[%clk 0:03:00]}  c5 {[%clk 0:02:58]} 2. d4 {[%clk 0:02:53]}  cxd4 {[%clk 0:02:57]} 3. c3 {[%clk 0:02:53]}  dxc3 {[%clk 0:02:56]} 4. Nxc3 {[%clk 0:02:53]}  e6 {[%clk 0:02:57]} 5. Nf3 {[%clk 0:02:52]}  Nc6 {[%clk 0:02:55]} 6. Bd3 {[%clk 0:02:46]}  d6 {[%clk 0:02:51]} 7. O-O {[%clk 0:02:46]}  a6 {[%clk 0:02:51]} 8. Qe2 {[%clk 0:02:42]}  Nf6 {[%clk 0:02:51]} 9. Rd1 {[%clk 0:02:41]}  Qc7 {[%clk 0:02:50]} 10. Bf4 {[%clk 0:02:37]}  e5 {[%clk 0:02:50]} 11. Bg5 {[%clk 0:02:35]}  Bg4 {[%clk 0:02:47]} 12. Bxf6 {[%clk 0:02:32]}  Nd4 {[%clk 0:02:41]} 13. Qe3 {[%clk 0:02:16]}  Bxf3 {[%clk 0:02:36]} 14. gxf3 {[%clk 0:02:10]}  gxf6 {[%clk 0:02:33]} 15. Nd5 {[%clk 0:02:07]}  Qc8 {[%clk 0:02:27]} 16. Nxf6+ {[%clk 0:01:59]}  Ke7 {[%clk 0:02:26]} 17. Nd5+ {[%clk 0:01:39]}  Ke8 {[%clk 0:02:26]} 18. Bf1 {[%clk 0:01:36]}  Be7 {[%clk 0:02:09]} 19. Rac1 {[%clk 0:01:29]}  Rg8+ {[%clk 0:01:59]} 20. Kh1 {[%clk 0:01:25]}  Qd8 {[%clk 0:01:53]} 21. Nc7+ {[%clk 0:01:08]}  Kf8 {[%clk 0:01:39]} 22. Nxa8 {[%clk 0:01:08]}  Bg5 {[%clk 0:01:35]} 23. Qa3 {[%clk 0:00:53]}  Bxc1 {[%clk 0:01:32]} 24. Rxc1 {[%clk 0:00:47]}  Qxa8 {[%clk 0:00:30]} 25. Qxd6+ {[%clk 0:00:46]}  Ke8 {[%clk 0:00:31]} 26. Qxe5+ {[%clk 0:00:44]}  Ne6 {[%clk 0:00:31]} 27. Bh3 {[%clk 0:00:39]}  Rg6 {[%clk 0:00:27]} 28. Bxe6 {[%clk 0:00:32]}  Rxe6 {[%clk 0:00:11]} 29. Qh8+ {[%clk 0:00:32]} 1-0


[Site "https://www.chess.com"]

[Event "Titled Tuesday Blitz May 23 Early 2023"]
[White "Cramling Bellon, Anna"]
[Black "Pg, Mohd Omar Ak Hira"]
[WhiteFideId "32009232"]
[BlackFideId "10500103"]
[WhiteElo "1976"]
[BlackElo "2167"]
[Result "1-0"]
[Round "07"]
[TimeControl "180+2"]
[Date "2023.05.23"]
[WhiteClock "0:00:41"]
[BlackClock "0:01:39"]

1. d4 {[%clk 0:03:00]}  g6 {[%clk 0:02:59]} 2. c4 {[%clk 0:03:00]}  Nf6 {[%clk 0:02:59]} 3. Nc3 {[%clk 0:02:55]}  d5 {[%clk 0:02:59]} 4. cxd5 {[%clk 0:02:55]}  Nxd5 {[%clk 0:03:00]} 5. e4 {[%clk 0:02:55]}  Nxc3 {[%clk 0:03:00]} 6. bxc3 {[%clk 0:02:56]}  Bg7 {[%clk 0:03:00]} 7. Qa4+ {[%clk 0:02:57]}  Bd7 {[%clk 0:02:57]} 8. Qa3 {[%clk 0:02:47]}  O-O {[%clk 0:02:56]} 9. Bg5 {[%clk 0:02:42]}  Re8 {[%clk 0:02:52]} 10. Nf3 {[%clk 0:02:41]}  h6 {[%clk 0:02:52]} 11. Be3 {[%clk 0:02:40]}  Bf8 {[%clk 0:02:42]} 12. Bc4 {[%clk 0:02:28]}  a6 {[%clk 0:02:33]} 13. Qc1 {[%clk 0:01:07]}  b5 {[%clk 0:02:28]} 14. Bxf7+ {[%clk 0:01:02]}  Kxf7 {[%clk 0:02:24]} 15. Ne5+ {[%clk 0:01:02]}  Kg8 {[%clk 0:02:12]} 16. Bxh6 {[%clk 0:01:03]}  Kh7 {[%clk 0:01:51]} 17. Nf7 {[%clk 0:00:43]}  Qc8 {[%clk 0:01:46]} 18. Bxf8 {[%clk 0:00:41]}  Rxf8 {[%clk 0:01:46]} 19. Qh6+ {[%clk 0:00:42]}  Kg8 {[%clk 0:01:39]} 20. Qxg6# {[%clk 0:00:41]} 1-0


[Site "https://www.chess.com"]

[Event "Titled Tuesday Blitz May 23 Early 2023"]
[White "Afanasieva, Alexandra"]
[Black "ChesscularGodofchess"]
[WhiteFideId "34126926"]
[WhiteElo "1745"]
[BlackElo "2096"]
[Result "0-1"]
[Round "07"]
[TimeControl "180+2"]
[Date "2023.05.23"]
[WhiteClock "0:00:35"]
[BlackClock "0:00:19"]

1. e4 {[%clk 0:02:56]}  c5 {[%clk 0:03:00]} 2. Nf3 {[%clk 0:02:56]}  e6 {[%clk 0:03:00]} 3. d4 {[%clk 0:02:56]}  cxd4 {[%clk 0:03:01]} 4. Nxd4 {[%clk 0:02:57]}  Nc6 {[%clk 0:03:02]} 5. c4 {[%clk 0:02:55]}  Bb4+ {[%clk 0:03:01]} 6. Nc3 {[%clk 0:02:53]}  Nf6 {[%clk 0:03:01]} 7. f3 {[%clk 0:02:54]}  d5 {[%clk 0:02:53]} 8. cxd5 {[%clk 0:02:51]}  exd5 {[%clk 0:02:52]} 9. Nxc6 {[%clk 0:02:48]}  bxc6 {[%clk 0:02:53]} 10. e5 {[%clk 0:02:45]}  Nd7 {[%clk 0:02:16]} 11. Bf4 {[%clk 0:02:41]}  Qe7 {[%clk 0:02:06]} 12. Qe2 {[%clk 0:02:07]}  d4 {[%clk 0:01:47]} 13. O-O-O {[%clk 0:01:53]}  dxc3 {[%clk 0:01:42]} 14. Qc4 {[%clk 0:01:48]}  cxb2+ {[%clk 0:01:40]} 15. Kxb2 {[%clk 0:01:49]}  Rb8 {[%clk 0:01:34]} 16. Ka1 {[%clk 0:01:40]}  Ba6 {[%clk 0:01:28]} 17. Qxc6 {[%clk 0:01:26]}  Qc5 {[%clk 0:00:52]} 18. Qxd7+ {[%clk 0:01:07]}  Kf8 {[%clk 0:00:49]} 19. Bb5 {[%clk 0:00:39]}  Bc3+ {[%clk 0:00:27]} 20. Kb1 {[%clk 0:00:37]}  Rxb5+ {[%clk 0:00:24]} 21. Kc2 {[%clk 0:00:37]}  Rb2+ {[%clk 0:00:18]} 22. Kc1 {[%clk 0:00:35]}  Bd4# {[%clk 0:00:19]} 0-1


[Site "https://www.chess.com"]

[Event "Titled Tuesday Blitz May 23 Early 2023"]
[White "Sanudula, K M Dahamdi"]
[Black "James, Stuart"]
[WhiteFideId "9932470"]
[BlackFideId "7400489"]
[WhiteElo "1556"]
[BlackElo "1950"]
[Result "1-0"]
[Round "07"]
[TimeControl "180+2"]
[Date "2023.05.23"]
[WhiteClock "0:00:28"]
[BlackClock "0:00:23"]

1. d4 {[%clk 0:02:57]}  Nf6 {[%clk 0:02:59]} 2. e3 {[%clk 0:02:57]}  c5 {[%clk 0:02:57]} 3. Bd3 {[%clk 0:02:57]}  e6 {[%clk 0:02:56]} 4. c3 {[%clk 0:02:57]}  Be7 {[%clk 0:02:55]} 5. Nd2 {[%clk 0:02:58]}  O-O {[%clk 0:02:55]} 6. f4 {[%clk 0:02:58]}  Nc6 {[%clk 0:02:52]} 7. Ngf3 {[%clk 0:02:58]}  d6 {[%clk 0:02:52]} 8. e4 {[%clk 0:02:57]}  e5 {[%clk 0:02:50]} 9. d5 {[%clk 0:02:55]}  Na5 {[%clk 0:02:43]} 10. fxe5 {[%clk 0:02:54]}  dxe5 {[%clk 0:02:43]} 11. Nxe5 {[%clk 0:02:54]}  Bd6 {[%clk 0:02:40]} 12. Nef3 {[%clk 0:02:54]}  Re8 {[%clk 0:02:39]} 13. O-O {[%clk 0:02:53]}  c4 {[%clk 0:02:38]} 14. Nxc4 {[%clk 0:02:22]}  Nxc4 {[%clk 0:02:33]} 15. Bxc4 {[%clk 0:02:21]}  Nxe4 {[%clk 0:02:33]} 16. Be3 {[%clk 0:02:13]}  Bg4 {[%clk 0:02:31]} 17. Bd4 {[%clk 0:02:09]}  Qc7 {[%clk 0:02:26]} 18. h3 {[%clk 0:02:08]}  Bxf3 {[%clk 0:02:16]} 19. Qxf3 {[%clk 0:01:58]}  Bh2+ {[%clk 0:01:31]} 20. Kh1 {[%clk 0:01:53]}  Ng3+ {[%clk 0:01:32]} 21. Kxh2 {[%clk 0:01:43]}  Nxf1+ {[%clk 0:01:31]} 22. Kg1 {[%clk 0:01:42]}  Qxc4 {[%clk 0:01:28]} 23. Rxf1 {[%clk 0:01:40]}  Qc7 {[%clk 0:01:22]} 24. Qg4 {[%clk 0:01:36]}  f5 {[%clk 0:01:10]} 25. Qxf5 {[%clk 0:01:27]}  Rf8 {[%clk 0:01:09]} 26. Qe6+ {[%clk 0:01:24]}  Kh8 {[%clk 0:01:10]} 27. Re1 {[%clk 0:01:23]}  Qg3 {[%clk 0:00:55]} 28. Qe7 {[%clk 0:00:46]}  Rf7 {[%clk 0:00:36]} 29. Qxf7 {[%clk 0:00:31]}  Qxe1+ {[%clk 0:00:35]} 30. Kh2 {[%clk 0:00:31]}  Rg8 {[%clk 0:00:28]} 31. d6 {[%clk 0:00:29]}  Qe8 {[%clk 0:00:23]} 32. Bxg7+ {[%clk 0:00:28]} 1-0


[Site "https://www.chess.com"]

[Event "Titled Tuesday Blitz May 23 Early 2023"]
[White "stratacticos"]
[Black "chessjazda"]
[WhiteElo "1890"]
[BlackElo "2283"]
[Result "0-1"]
[Round "07"]
[TimeControl "180+2"]
[Date "2023.05.23"]
[WhiteClock "0:00:00"]
[BlackClock "0:00:04"]

1. e4 {[%clk 0:03:00]}  d6 {[%clk 0:02:53]} 2. d4 {[%clk 0:03:00]}  a5 {[%clk 0:02:51]} 3. c4 {[%clk 0:02:57]}  a4 {[%clk 0:02:51]} 4. Nc3 {[%clk 0:02:54]}  Bd7 {[%clk 0:02:51]} 5. a3 {[%clk 0:02:51]}  g6 {[%clk 0:02:45]} 6. Bd3 {[%clk 0:02:47]}  c6 {[%clk 0:02:45]} 7. Bc2 {[%clk 0:02:46]}  b5 {[%clk 0:02:38]} 8. cxb5 {[%clk 0:02:38]}  cxb5 {[%clk 0:02:37]} 9. Ke2 {[%clk 0:02:35]}  Bg7 {[%clk 0:02:35]} 10. Nf3 {[%clk 0:02:34]}  Nf6 {[%clk 0:02:32]} 11. e5 {[%clk 0:02:27]}  dxe5 {[%clk 0:02:30]} 12. dxe5 {[%clk 0:02:27]}  Ng4 {[%clk 0:02:30]} 13. e6 {[%clk 0:02:26]}  fxe6 {[%clk 0:02:29]} 14. h3 {[%clk 0:02:14]}  Nf6 {[%clk 0:02:25]} 15. Ne5 {[%clk 0:02:13]}  O-O {[%clk 0:02:24]} 16. Nxd7 {[%clk 0:02:11]}  Nbxd7 {[%clk 0:02:17]} 17. Nxb5 {[%clk 0:01:39]}  Qb8 {[%clk 0:02:16]} 18. Bxa4 {[%clk 0:01:36]}  Qe5+ {[%clk 0:02:12]} 19. Be3 {[%clk 0:01:35]}  Nd5 {[%clk 0:02:10]} 20. Nc3 {[%clk 0:01:19]}  Rxa4 {[%clk 0:02:00]} 21. Qxa4 {[%clk 0:01:15]}  Qxc3 {[%clk 0:01:58]} 22. bxc3 {[%clk 0:01:12]}  Nxc3+ {[%clk 0:01:58]} 23. Kf1 {[%clk 0:01:00]}  Nxa4 {[%clk 0:01:59]} 24. Rd1 {[%clk 0:00:59]}  Ne5 {[%clk 0:01:58]} 25. Bd4 {[%clk 0:00:53]}  Rd8 {[%clk 0:01:43]} 26. Ke2 {[%clk 0:00:51]}  Rc8 {[%clk 0:01:02]} 27. Rc1 {[%clk 0:00:48]}  Rd8 {[%clk 0:00:59]} 28. Rhd1 {[%clk 0:00:47]}  Ra8 {[%clk 0:00:52]} 29. Rc7 {[%clk 0:00:39]}  Nc6 {[%clk 0:00:39]} 30. Rxc6 {[%clk 0:00:37]}  Bf8 {[%clk 0:00:36]} 31. Rxe6 {[%clk 0:00:35]}  Kf7 {[%clk 0:00:31]} 32. Re3 {[%clk 0:00:30]}  Bh6 {[%clk 0:00:30]} 33. Rf3+ {[%clk 0:00:28]}  Ke8 {[%clk 0:00:30]} 34. Rb1 {[%clk 0:00:25]}  Rc8 {[%clk 0:00:30]} 35. Kd3 {[%clk 0:00:22]}  Rd8 {[%clk 0:00:26]} 36. Kc4 {[%clk 0:00:20]}  Rc8+ {[%clk 0:00:22]} 37. Kb5 {[%clk 0:00:18]}  Rb8+ {[%clk 0:00:22]} 38. Kxa4 {[%clk 0:00:17]}  Rxb1 {[%clk 0:00:22]} 39. Bc5 {[%clk 0:00:14]}  Rb2 {[%clk 0:00:20]} 40. Bb4 {[%clk 0:00:13]}  Bc1 {[%clk 0:00:19]} 41. Kb5 {[%clk 0:00:13]}  Bd2 {[%clk 0:00:17]} 42. Rd3 {[%clk 0:00:10]}  Bf4 {[%clk 0:00:15]} 43. g3 {[%clk 0:00:09]}  Bd6 {[%clk 0:00:14]} 44. f4 {[%clk 0:00:08]}  Kf7 {[%clk 0:00:13]} 45. Rd4 {[%clk 0:00:06]}  Rb1 {[%clk 0:00:11]} 46. Ka5 {[%clk 0:00:04]}  Bc7+ {[%clk 0:00:12]} 47. Ka4 {[%clk 0:00:03]}  Rb2 {[%clk 0:00:12]} 48. Rd7 {[%clk 0:00:00]}  Rc2 {[%clk 0:00:04]} 0-1


[Site "https://www.chess.com"]

[Event "Titled Tuesday Blitz May 23 Early 2023"]
[White "Shapiro, Viktor"]
[Black "Dahlgren, James Allen"]
[WhiteFideId "4175700"]
[BlackFideId "22256873"]
[WhiteElo "2152"]
[BlackElo "2176"]
[Result "1-0"]
[Round "07"]
[TimeControl "180+2"]
[Date "2023.05.23"]
[WhiteClock "0:02:22"]
[BlackClock "0:02:00"]

1. d4 {[%clk 0:03:00]}  e6 {[%clk 0:02:59]} 2. c4 {[%clk 0:02:56]}  c5 {[%clk 0:03:00]} 3. d5 {[%clk 0:02:55]}  exd5 {[%clk 0:02:59]} 4. cxd5 {[%clk 0:02:56]}  f5 {[%clk 0:03:00]} 5. Nc3 {[%clk 0:02:55]}  d6 {[%clk 0:03:01]} 6. h3 {[%clk 0:02:54]}  Nf6 {[%clk 0:03:02]} 7. g4 {[%clk 0:02:54]}  Be7 {[%clk 0:03:03]} 8. g5 {[%clk 0:02:53]}  Nfd7 {[%clk 0:03:03]} 9. h4 {[%clk 0:02:52]}  O-O {[%clk 0:03:03]} 10. Nh3 {[%clk 0:02:47]}  a6 {[%clk 0:03:02]} 11. a4 {[%clk 0:02:45]}  Ne5 {[%clk 0:02:59]} 12. Nf4 {[%clk 0:02:43]}  Bd7 {[%clk 0:02:42]} 13. e3 {[%clk 0:02:39]}  Qc7 {[%clk 0:02:34]} 14. Bg2 {[%clk 0:02:37]}  g6 {[%clk 0:02:31]} 15. O-O {[%clk 0:02:31]}  a5 {[%clk 0:02:30]} 16. Ne6 {[%clk 0:02:29]}  Bxe6 {[%clk 0:02:29]} 17. dxe6 {[%clk 0:02:30]}  Nbc6 {[%clk 0:02:29]} 18. Nd5 {[%clk 0:02:30]}  Qd8 {[%clk 0:02:26]} 19. f4 {[%clk 0:02:28]}  Ng4 {[%clk 0:02:23]} 20. e4 {[%clk 0:02:28]}  Nd4 {[%clk 0:02:18]} 21. exf5 {[%clk 0:02:27]}  gxf5 {[%clk 0:02:19]} 22. Bh3 {[%clk 0:02:26]}  Nxe6 {[%clk 0:02:13]} 23. Bxg4 {[%clk 0:02:25]}  fxg4 {[%clk 0:02:14]} 24. f5 {[%clk 0:02:23]}  Nxg5 {[%clk 0:02:08]} 25. hxg5 {[%clk 0:02:22]}  Bxg5 {[%clk 0:02:09]} 26. Qxg4 {[%clk 0:02:22]}  h6 {[%clk 0:02:00]} 27. f6 {[%clk 0:02:22]} 1-0


[Site "https://www.chess.com"]

[Event "Titled Tuesday Blitz May 23 Early 2023"]
[White "Napoli, Nicolo"]
[Black "Dilmukhametov, Artur"]
[WhiteFideId "813702"]
[BlackFideId "24179922"]
[WhiteElo "2308"]
[BlackElo "2242"]
[Result "1-0"]
[Round "07"]
[TimeControl "180+2"]
[Date "2023.05.23"]
[WhiteClock "0:01:01"]
[BlackClock "0:01:26"]

1. e4 {[%clk 0:03:00]}  e6 {[%clk 0:02:56]} 2. Qe2 {[%clk 0:03:00]}  d5 {[%clk 0:02:54]} 3. exd5 {[%clk 0:03:00]}  Qxd5 {[%clk 0:02:53]} 4. Nf3 {[%clk 0:03:01]}  Nc6 {[%clk 0:02:52]} 5. g3 {[%clk 0:03:00]}  Nf6 {[%clk 0:02:51]} 6. Bg2 {[%clk 0:03:00]}  Qd8 {[%clk 0:02:49]} 7. O-O {[%clk 0:02:59]}  Bc5 {[%clk 0:02:47]} 8. c3 {[%clk 0:02:57]}  O-O {[%clk 0:02:46]} 9. d4 {[%clk 0:02:57]}  Bd6 {[%clk 0:02:43]} 10. Bg5 {[%clk 0:02:46]}  Re8 {[%clk 0:02:39]} 11. Nbd2 {[%clk 0:02:41]}  Bd7 {[%clk 0:02:36]} 12. Ne5 {[%clk 0:02:28]}  Bxe5 {[%clk 0:02:28]} 13. dxe5 {[%clk 0:02:23]}  Qe7 {[%clk 0:02:06]} 14. exf6 {[%clk 0:02:22]}  gxf6 {[%clk 0:02:06]} 15. Be3 {[%clk 0:02:02]}  e5 {[%clk 0:01:58]} 16. Ne4 {[%clk 0:01:56]}  Bf5 {[%clk 0:01:55]} 17. g4 {[%clk 0:01:36]}  Bxe4 {[%clk 0:01:54]} 18. Bxe4 {[%clk 0:01:37]}  Qe6 {[%clk 0:01:52]} 19. Bf5 {[%clk 0:01:36]}  Qd5 {[%clk 0:01:49]} 20. Qd3 {[%clk 0:01:32]}  Qa5 {[%clk 0:01:40]} 21. b4 {[%clk 0:01:21]}  Qa3 {[%clk 0:01:36]} 22. Bc5 {[%clk 0:01:04]}  Rad8 {[%clk 0:01:26]} 23. Qh3 {[%clk 0:01:01]} 1-0


[Site "https://www.chess.com"]

[Event "Titled Tuesday Blitz May 23 Early 2023"]
[White "Sarana, Alexey"]
[Black "Kramnik, Vladimir"]
[WhiteFideId "24133795"]
[BlackFideId "4101588"]
[WhiteElo "2714"]
[BlackElo "2703"]
[Result "1/2-1/2"]
[Round "08"]
[TimeControl "180+2"]
[Date "2023.05.23"]
[WhiteClock "0:00:02"]
[BlackClock "0:00:05"]

1. d4 {[%clk 0:02:58]}  d5 {[%clk 0:03:00]} 2. c4 {[%clk 0:02:59]}  c6 {[%clk 0:03:00]} 3. Nf3 {[%clk 0:02:59]}  Nf6 {[%clk 0:03:01]} 4. Nc3 {[%clk 0:03:00]}  e6 {[%clk 0:03:00]} 5. Bg5 {[%clk 0:02:59]}  h6 {[%clk 0:02:59]} 6. Bxf6 {[%clk 0:02:58]}  Qxf6 {[%clk 0:02:59]} 7. a3 {[%clk 0:02:59]}  dxc4 {[%clk 0:02:57]} 8. e3 {[%clk 0:02:58]}  b5 {[%clk 0:02:54]} 9. Ne5 {[%clk 0:02:59]}  Bb7 {[%clk 0:02:47]} 10. b3 {[%clk 0:02:58]}  Qd8 {[%clk 0:02:43]} 11. bxc4 {[%clk 0:02:57]}  Nd7 {[%clk 0:02:43]} 12. Nxd7 {[%clk 0:02:24]}  Qxd7 {[%clk 0:02:43]} 13. cxb5 {[%clk 0:02:23]}  c5 {[%clk 0:02:43]} 14. dxc5 {[%clk 0:02:20]}  Qxd1+ {[%clk 0:02:31]} 15. Kxd1 {[%clk 0:02:19]}  Bxc5 {[%clk 0:02:32]} 16. Bd3 {[%clk 0:02:15]}  Bxg2 {[%clk 0:02:26]} 17. Rg1 {[%clk 0:02:14]}  Bf3+ {[%clk 0:02:24]} 18. Be2 {[%clk 0:02:14]}  Rd8+ {[%clk 0:02:16]} 19. Kc2 {[%clk 0:02:14]}  Bxe2 {[%clk 0:02:15]} 20. Nxe2 {[%clk 0:02:15]}  g5 {[%clk 0:02:12]} 21. Nc3 {[%clk 0:01:56]}  f5 {[%clk 0:02:05]} 22. h3 {[%clk 0:01:54]}  Ke7 {[%clk 0:02:04]} 23. a4 {[%clk 0:01:38]}  Bb4 {[%clk 0:02:02]} 24. Kb3 {[%clk 0:01:37]}  Ba5 {[%clk 0:02:02]} 25. Rad1 {[%clk 0:01:32]}  Kf6 {[%clk 0:01:55]} 26. Na2 {[%clk 0:01:16]}  h5 {[%clk 0:01:30]} 27. Nb4 {[%clk 0:01:15]}  Bxb4 {[%clk 0:01:25]} 28. Kxb4 {[%clk 0:01:16]}  Rxd1 {[%clk 0:01:21]} 29. Rxd1 {[%clk 0:01:15]}  h4 {[%clk 0:01:21]} 30. a5 {[%clk 0:00:43]}  g4 {[%clk 0:01:20]} 31. b6 {[%clk 0:00:43]}  axb6 {[%clk 0:01:19]} 32. axb6 {[%clk 0:00:44]}  Ke5 {[%clk 0:01:11]} 33. Rg1 {[%clk 0:00:37]}  Ke4 {[%clk 0:00:56]} 34. hxg4 {[%clk 0:00:37]}  h3 {[%clk 0:00:44]} 35. gxf5 {[%clk 0:00:23]}  exf5 {[%clk 0:00:44]} 36. Kc5 {[%clk 0:00:06]}  Kf3 {[%clk 0:00:39]} 37. b7 {[%clk 0:00:06]}  Kxf2 {[%clk 0:00:29]} 38. Rb1 {[%clk 0:00:04]}  h2 {[%clk 0:00:28]} 39. Kc6 {[%clk 0:00:02]}  Kg2 {[%clk 0:00:17]} 40. Rb2+ {[%clk 0:00:01]}  Kg3 {[%clk 0:00:15]} 41. Rb1 {[%clk 0:00:02]}  Kg2 {[%clk 0:00:13]} 42. Rb2+ {[%clk 0:00:02]}  Kg3 {[%clk 0:00:08]} 43. Rb1 {[%clk 0:00:02]}  Kg2 {[%clk 0:00:05]} 1/2-1/2


[Site "https://www.chess.com"]

[Event "Titled Tuesday Blitz May 23 Early 2023"]
[White "Grischuk, Alexander"]
[Black "Babazada, Khazar"]
[WhiteFideId "4126025"]
[BlackFideId "13413554"]
[WhiteElo "2721"]
[BlackElo "2351"]
[Result "1-0"]
[Round "08"]
[TimeControl "180+2"]
[Date "2023.05.23"]
[WhiteClock "0:01:34"]
[BlackClock "0:01:12"]

1. Nf3 {[%clk 0:03:00]}  Nf6 {[%clk 0:02:58]} 2. g3 {[%clk 0:03:01]}  g6 {[%clk 0:02:58]} 3. c4 {[%clk 0:03:01]}  Bg7 {[%clk 0:02:58]} 4. Nc3 {[%clk 0:03:02]}  d6 {[%clk 0:02:59]} 5. d4 {[%clk 0:02:59]}  O-O {[%clk 0:02:59]} 6. Bg2 {[%clk 0:02:59]}  Nbd7 {[%clk 0:03:00]} 7. O-O {[%clk 0:02:59]}  e5 {[%clk 0:03:00]} 8. e4 {[%clk 0:03:00]}  a6 {[%clk 0:03:01]} 9. Be3 {[%clk 0:02:54]}  exd4 {[%clk 0:03:01]} 10. Nxd4 {[%clk 0:02:54]}  Re8 {[%clk 0:03:02]} 11. h3 {[%clk 0:02:48]}  Rb8 {[%clk 0:03:02]} 12. b3 {[%clk 0:02:41]}  c5 {[%clk 0:02:42]} 13. Nde2 {[%clk 0:02:40]}  b5 {[%clk 0:02:42]} 14. Qxd6 {[%clk 0:02:16]}  b4 {[%clk 0:02:38]} 15. Na4 {[%clk 0:02:16]}  Nxe4 {[%clk 0:02:34]} 16. Bxe4 {[%clk 0:02:11]}  Rxe4 {[%clk 0:02:35]} 17. Rad1 {[%clk 0:02:10]}  Qe8 {[%clk 0:02:04]} 18. Nf4 {[%clk 0:02:05]}  Be5 {[%clk 0:01:58]} 19. Qd3 {[%clk 0:01:56]}  Bxf4 {[%clk 0:01:19]} 20. Bxf4 {[%clk 0:01:55]}  Rb6 {[%clk 0:01:18]} 21. Nxb6 {[%clk 0:01:36]}  Nxb6 {[%clk 0:01:12]} 22. Qd8 {[%clk 0:01:34]} 1-0


[Site "https://www.chess.com"]

[Event "Titled Tuesday Blitz May 23 Early 2023"]
[White "Matlakov, Maxim"]
[Black "Sviridov, Valery"]
[WhiteFideId "4168003"]
[BlackFideId "4120680"]
[WhiteElo "2666"]
[BlackElo "2457"]
[Result "1-0"]
[Round "08"]
[TimeControl "180+2"]
[Date "2023.05.23"]
[WhiteClock "0:00:28"]
[BlackClock "0:00:29"]

1. Nf3 {[%clk 0:03:00]}  g6 {[%clk 0:02:54]} 2. d4 {[%clk 0:02:57]}  Bg7 {[%clk 0:02:55]} 3. e4 {[%clk 0:02:58]}  d6 {[%clk 0:02:55]} 4. Bd3 {[%clk 0:02:57]}  Nf6 {[%clk 0:02:54]} 5. c3 {[%clk 0:02:57]}  O-O {[%clk 0:02:54]} 6. O-O {[%clk 0:02:58]}  Nc6 {[%clk 0:02:55]} 7. h3 {[%clk 0:02:57]}  e5 {[%clk 0:02:55]} 8. Re1 {[%clk 0:02:57]}  a5 {[%clk 0:02:51]} 9. a3 {[%clk 0:02:47]}  Re8 {[%clk 0:02:47]} 10. d5 {[%clk 0:02:42]}  Nb8 {[%clk 0:02:47]} 11. c4 {[%clk 0:02:42]}  Nh5 {[%clk 0:02:39]} 12. Nc3 {[%clk 0:02:41]}  Nd7 {[%clk 0:02:34]} 13. Rb1 {[%clk 0:02:40]}  Rf8 {[%clk 0:02:26]} 14. b4 {[%clk 0:02:39]}  Nf4 {[%clk 0:02:26]} 15. Bf1 {[%clk 0:02:33]}  axb4 {[%clk 0:02:25]} 16. axb4 {[%clk 0:02:33]}  f5 {[%clk 0:02:11]} 17. exf5 {[%clk 0:02:32]}  Rxf5 {[%clk 0:02:12]} 18. Ne4 {[%clk 0:02:26]}  h6 {[%clk 0:02:11]} 19. c5 {[%clk 0:02:24]}  Qe7 {[%clk 0:02:04]} 20. Qb3 {[%clk 0:02:11]}  Rf8 {[%clk 0:01:59]} 21. Bxf4 {[%clk 0:02:06]}  Rxf4 {[%clk 0:01:59]} 22. Rbc1 {[%clk 0:02:05]}  Nf6 {[%clk 0:01:56]} 23. Nfd2 {[%clk 0:01:45]}  Nxe4 {[%clk 0:01:49]} 24. Nxe4 {[%clk 0:01:45]}  Bf5 {[%clk 0:01:47]} 25. Bd3 {[%clk 0:01:39]}  Kh7 {[%clk 0:01:46]} 26. Qc2 {[%clk 0:01:28]}  Rf8 {[%clk 0:01:44]} 27. Re2 {[%clk 0:01:25]}  Rf7 {[%clk 0:01:25]} 28. b5 {[%clk 0:01:19]}  Bxe4 {[%clk 0:01:10]} 29. Bxe4 {[%clk 0:01:17]}  Qg5 {[%clk 0:01:10]} 30. b6 {[%clk 0:00:55]}  dxc5 {[%clk 0:01:10]} 31. bxc7 {[%clk 0:00:54]}  Rxc7 {[%clk 0:01:10]} 32. d6 {[%clk 0:00:53]}  Rd7 {[%clk 0:01:10]} 33. Rd1 {[%clk 0:00:53]}  b6 {[%clk 0:01:02]} 34. g3 {[%clk 0:00:54]}  Rf6 {[%clk 0:01:01]} 35. h4 {[%clk 0:00:53]}  Qg4 {[%clk 0:01:01]} 36. Red2 {[%clk 0:00:50]}  h5 {[%clk 0:01:00]} 37. Kg2 {[%clk 0:00:45]}  Bh6 {[%clk 0:01:00]} 38. Rd5 {[%clk 0:00:41]}  Bf8 {[%clk 0:00:55]} 39. Rxe5 {[%clk 0:00:35]}  Rdxd6 {[%clk 0:00:55]} 40. Rxd6 {[%clk 0:00:34]}  Rxd6 {[%clk 0:00:56]} 41. Rg5 {[%clk 0:00:33]}  Qd1 {[%clk 0:00:52]} 42. Bxg6+ {[%clk 0:00:32]}  Kh8 {[%clk 0:00:32]} 43. Rxh5+ {[%clk 0:00:31]}  Kg8 {[%clk 0:00:29]} 44. Qc4+ {[%clk 0:00:28]} 1-0


[Site "https://www.chess.com"]

[Event "Titled Tuesday Blitz May 23 Early 2023"]
[White "Hakobyan, Aram"]
[Black "Zakhartsov, Vladimir"]
[WhiteFideId "13306677"]
[BlackFideId "4145097"]
[WhiteElo "2584"]
[BlackElo "2495"]
[Result "1-0"]
[Round "08"]
[TimeControl "180+2"]
[Date "2023.05.23"]
[WhiteClock "0:00:56"]
[BlackClock "0:00:13"]

1. d4 {[%clk 0:03:00]}  g6 {[%clk 0:02:59]} 2. c4 {[%clk 0:02:59]}  Bg7 {[%clk 0:02:59]} 3. Nc3 {[%clk 0:02:59]}  b6 {[%clk 0:02:59]} 4. e4 {[%clk 0:02:59]}  Bb7 {[%clk 0:02:59]} 5. Nf3 {[%clk 0:03:00]}  e6 {[%clk 0:02:59]} 6. Be2 {[%clk 0:02:59]}  Ne7 {[%clk 0:03:00]} 7. O-O {[%clk 0:02:58]}  d5 {[%clk 0:02:59]} 8. cxd5 {[%clk 0:02:58]}  exd5 {[%clk 0:03:00]} 9. e5 {[%clk 0:02:59]}  c5 {[%clk 0:03:00]} 10. Nb5 {[%clk 0:02:56]}  O-O {[%clk 0:02:58]} 11. Nd6 {[%clk 0:02:54]}  Bc6 {[%clk 0:02:57]} 12. Bg5 {[%clk 0:02:51]}  h6 {[%clk 0:02:57]} 13. Bh4 {[%clk 0:02:49]}  Qd7 {[%clk 0:02:57]} 14. Rc1 {[%clk 0:02:36]}  c4 {[%clk 0:02:56]} 15. Nd2 {[%clk 0:02:21]}  Qc7 {[%clk 0:02:43]} 16. b3 {[%clk 0:02:12]}  b5 {[%clk 0:02:43]} 17. bxc4 {[%clk 0:02:13]}  bxc4 {[%clk 0:02:43]} 18. N2xc4 {[%clk 0:02:12]}  dxc4 {[%clk 0:02:42]} 19. Bxc4 {[%clk 0:02:13]}  Qd7 {[%clk 0:02:35]} 20. Nxf7 {[%clk 0:01:51]}  Bd5 {[%clk 0:02:32]} 21. Bxe7 {[%clk 0:01:37]}  Rxf7 {[%clk 0:02:24]} 22. Bxd5 {[%clk 0:01:27]}  Qxd5 {[%clk 0:02:25]} 23. Rc8+ {[%clk 0:01:28]}  Kh7 {[%clk 0:02:26]} 24. Bd6 {[%clk 0:01:27]}  Qb7 {[%clk 0:01:53]} 25. Qc2 {[%clk 0:01:10]}  Na6 {[%clk 0:01:15]} 26. Rxa8 {[%clk 0:01:07]}  Qxa8 {[%clk 0:01:15]} 27. Qc4 {[%clk 0:01:06]}  Qb7 {[%clk 0:01:15]} 28. e6 {[%clk 0:01:06]}  Bf8 {[%clk 0:00:27]} 29. e7 {[%clk 0:00:56]}  Rxe7 {[%clk 0:00:22]} 30. Bxe7 {[%clk 0:00:57]}  Bxe7 {[%clk 0:00:23]} 31. Qf7+ {[%clk 0:00:57]}  Kh8 {[%clk 0:00:13]} 32. Re1 {[%clk 0:00:56]} 1-0


[Site "https://www.chess.com"]